Workbook

Sheet P(1)
A1: Can you find at least 12 problems with this spreadsheet?
A3: Assumptions
A4: Days | B4: 2010-04-23 | C4: =B4+1 -> 2010-04-24 | D4: 2010-04-25 | E4: 2010-04-26 | F4: 2010-04-27
B6: Names | C6: ="Day 1: "&TEXT(B4,"m/d/y") -> Day 1: 4/23/10 | D6: ="Day 1: "&TEXT(C4,"m/d/y") -> Day 1: 4/24/10 | E6: ="Day 1: "&TEXT(D4,"m/d/y") -> Day 1: 4/25/10 | F6: Day 1: 4/26/10 | G6: Day 1: 4/27/10
B7: Jo | C7: 2679.05 | D7: 1564.17 | E7: 2476.82 | F7: 1190.18 | G7: 1038.05
B8: Joe | C8: 1533.63 | D8: 2800.32 | E8: 2246.51 | F8: 2399.52 | G8: 1387.32
B9: Sean | C9: 1013.55 | D9: 1170.1 | E9: 2874.04 | F9: 1757.26 | G9: 2437.78
B10: Chin | C10: 1899.4 | D10: 1721.91 | E10: 2606.97 | F10: 2160.33 | G10: 1331.4
B11: Mike | C11: 2835.53 | D11: 2414.63 | E11: 2465.26 | F11: 2097.39 | G11: 1110.8
B12: Sioux | C12: 2101.25 | D12: 1565.38 | E12: 2618.64 | F12: 1104.04 | G12: 2429.58
B13: Totals | C13: =C12+C11+C10+C9+C8+C7 -> 12062.41 | D13: =SUM(D8:D13) -> 0 | E13: =SUM(E5:E10) | F13: =SUM(F8:F12) -> 9518.54 | G13: =SUM(G7:G11) -> 7305.35
B15: Select Name To Sum
B16: Jo
B17: =SUMPRODUCT(INDEX(C7:G12,MATCH(B16,B7:B12,0),0)) -> 8948.27

Sheet P(1an) (hidden)
A1: Can you find at least 11 problems with this spreadsheet?
A3: Assumptions
A4: Days | B4: 2010-04-23 | C4: =B4+1 -> 2010-04-24 | D4: 2010-04-25 | E4: 2010-04-26 | F4: 2010-04-27
B6: Names | C6: ="Day 1: "&TEXT(B4,"m/d/y") -> Day 1: 4/23/10 | D6: ="Day 1: "&TEXT(C4,"m/d/y") -> Day 1: 4/24/10 | E6: ="Day 1: "&TEXT(D4,"m/d/y") -> Day 1: 4/25/10 | F6: Day 1: 4/26/10 | G6: Day 1: 4/27/10
B7: Jo | C7: 2679.05 | D7: 1564.17 | E7: 2476.82 | F7: 1190.18 | G7: 1038.05
B8: Joe | C8: 1533.63 | D8: 2800.32 | E8: 2246.51 | F8: 2399.52 | G8: 1387.32
B9: Sean | C9: 1013.55 | D9: 1170.1 | E9: 2874.04 | F9: 1757.26 | G9: 2437.78
B10: Chin | C10: 1899.4 | D10: 1721.91 | E10: 2606.97 | F10: 2160.33 | G10: 1331.4
B11: Mike | C11: 2835.53 | D11: 2414.63 | E11: 2465.26 | F11: 2097.39 | G11: 1110.8
B12: Sioux | C12: 2101.25 | D12: 1565.38 | E12: 2618.64 | F12: 1104.04 | G12: 2429.58
B13: Totals | C13: =C12+C11+C10+C9+C8+C7 -> 12062.41 | D13: =SUM(D8:D13) -> 0 | E13: =SUM(E5:E10) | F13: =SUM(F8:F12) -> 9518.54 | G13: =SUM(G7:G11) -> 7305.35
B15: Select Name To Sum
B16: Jo
B17: =SUMPRODUCT(INDEX(C7:G12,MATCH(B16,B7:B12,0),0)) -> 8948.27
B20: Problems
B21: 1 | C21: ="The word 'Days' in cell "&ADDRESS(ROW(A4),COLUMN(A4),4)&" usually should not be aligned right. This is because the default alignment for text and numbers is helpful in seeing what type of data is in cell." -> The word 'Days' in cell A4 usually should not be aligned right. This is because the default alignment for text and numbers is helpful in seeing what type of data is in cell.
B22: 2 | C22: Merge and Center should be Center Across Selection
B23: 3 | C23: ="Cells "&ADDRESS(ROW(F6),COLUMN(F6),4)&":"&ADDRESS(ROW(G6),COLUMN(G6),4)&" must be formulas so that if you change assumptions the labels will change." -> Cells F6:G6 must be formulas so that if you change assumptions the labels will change.
B24: 4 | C24: ="Formula in cell "&ADDRESS(ROW(C13),COLUMN(C13),4)&" must use SUM not + + + + + . This is because SUM is faster to create and if rows are inserted SUM will update, but + + + will not update." -> Formula in cell C13 must use SUM not + + + + + . This is because SUM is faster to create and if rows are inserted SUM will update, but + + + will not update.
B25: 5 | C25: ="Cells "&ADDRESS(ROW(C7),COLUMN(C7),4)&":"&ADDRESS(ROW(C12),COLUMN(C12),4)&" must not be formatted with TEXT Number format" -> Cells C7:C12 must not be formatted with TEXT Number format
B26: 6 | C26: ="Cells "&ADDRESS(ROW(B4),COLUMN(B4),4)&":"&ADDRESS(ROW(F4),COLUMN(F4),4)&" must be formatted to show year so that template can be used for other years besides the current one." -> Cells B4:F4 must be formatted to show year so that template can be used for other years besides the current one.
B27: 7 | C27: ="Cell "&ADDRESS(ROW(E13),COLUMN(E13),4)&" must not be formatted with TEXT Number format. Once it is formatted with a Number format that can see numbers, you must put the formula into edit mode and hit Enter to get the formula to show the formula result." -> Cell E13 must not be formatted with TEXT Number format. Once it is formatted with a Number format that can see numbers, you must put the formula into edit mode and hit Enter to get the formula to show the formula result.
B28: 8 | C28: ="The formulas in the cells "&ADDRESS(ROW(F13),COLUMN(F13),4)&":"&ADDRESS(ROW(G13),COLUMN(G13),4)&" must add all the numbers in the column." -> The formulas in the cells F13:G13 must add all the numbers in the column.
B29: 9 | C29: ="Data Validation List in cell "&ADDRESS(ROW(B16),COLUMN(B16),4)&" should be linked to cells with names." -> Data Validation List in cell B16 should be linked to cells with names.
B30: 10 | C30: ="Name in cell "&ADDRESS(ROW(B11),COLUMN(B11),4)&" must not have a space at the end." -> Name in cell B11 must not have a space at the end.
B31: 11 | C31: ="Something is wrong with cell "&ADDRESS(ROW(D13),COLUMN(D13),4)&" but I do not know what it is, can you figure it out?" -> Something is wrong with cell D13 but I do not know what it is, can you figure it out?
B32: 12 | C32: Formatting Numbers might be nice also.

Sheet P(1an) (2) (hidden)
A1: Can you find at least 11 problems with this spreadsheet?
A3: Assumptions
A4: Days | B4: 2010-04-23 | C4: =B4+1 -> 2010-04-24 | D4: 2010-04-25 | E4: 2010-04-26 | F4: 2010-04-27
B6: Names | C6: ="Day 1: "&TEXT(B4,"m/d/y") -> Day 1: 4/23/10 | D6: ="Day 1: "&TEXT(C4,"m/d/y") -> Day 1: 4/24/10 | E6: ="Day 1: "&TEXT(D4,"m/d/y") -> Day 1: 4/25/10 | F6: ="Day 1: "&TEXT(E4,"m/d/y") -> Day 1: 4/26/10 | G6: Day 1: 4/27/10
B7: Jo | C7: 2679.05 | D7: 1564.17 | E7: 2476.82 | F7: 1190.18 | G7: 1038.05
B8: Joe | C8: 1533.63 | D8: 2800.32 | E8: 2246.51 | F8: 2399.52 | G8: 1387.32
B9: Sean | C9: 1013.55 | D9: 1170.1 | E9: 2874.04 | F9: 1757.26 | G9: 2437.78
B10: Chin | C10: 1899.4 | D10: 1721.91 | E10: 2606.97 | F10: 2160.33 | G10: 1331.4
B11: Mike | C11: 2835.53 | D11: 2414.63 | E11: 2465.26 | F11: 2097.39 | G11: 1110.8
B12: Sioux | C12: 2101.25 | D12: 1565.38 | E12: 2618.64 | F12: 1104.04 | G12: 2429.58
B13: Totals | C13: =SUM(C7:C12) -> 12062.41 | D13: =SUM(D7:D12) -> 11236.51 | E13: 15288.24 | F13: 10708.72 | G13: 9734.93
B15: Select Name To Sum
B16: Mike
B17: =SUMPRODUCT(INDEX(C7:G12,MATCH(B16,B7:B12,0),0)) -> 10923.61
B20: Problems
B21: 1 | C21: ="The word 'Days' in cell "&ADDRESS(ROW(A4),COLUMN(A4),4)&" usually should not be aligned right. This is because the default alignment for text and numbers is helpful in seeing what type of data is in cell." -> The word 'Days' in cell A4 usually should not be aligned right. This is because the default alignment for text and numbers is helpful in seeing what type of data is in cell.
B22: 2 | C22: Merge and Center should be Center Across Selection
B23: 3 | C23: ="Cells "&ADDRESS(ROW(F6),COLUMN(F6),4)&":"&ADDRESS(ROW(G6),COLUMN(G6),4)&" must be formulas so that if you change assumptions the labels will change." -> Cells F6:G6 must be formulas so that if you change assumptions the labels will change.
B24: 4 | C24: ="Formula in cell "&ADDRESS(ROW(C13),COLUMN(C13),4)&" must use SUM not + + + + + . This is because SUM is faster to create and if rows are inserted SUM will update, but + + + will not update." -> Formula in cell C13 must use SUM not + + + + + . This is because SUM is faster to create and if rows are inserted SUM will update, but + + + will not update.
B25: 5 | C25: ="Cells "&ADDRESS(ROW(C7),COLUMN(C7),4)&":"&ADDRESS(ROW(C12),COLUMN(C12),4)&" must not be formatted with TEXT Number format" -> Cells C7:C12 must not be formatted with TEXT Number format
B26: 6 | C26: ="Cells "&ADDRESS(ROW(B4),COLUMN(B4),4)&":"&ADDRESS(ROW(F4),COLUMN(F4),4)&" must be formatted to show year so that template can be used for other years besides the current one." -> Cells B4:F4 must be formatted to show year so that template can be used for other years besides the current one.
B27: 7 | C27: ="Cell "&ADDRESS(ROW(E13),COLUMN(E13),4)&" must not be formatted with TEXT Number format. Once it is formatted with a Number format that can see numbers, you must put the formula into edit mode and hit Enter to get the formula to show the formula result." -> Cell E13 must not be formatted with TEXT Number format. Once it is formatted with a Number format that can see numbers, you must put the formula into edit mode and hit Enter to get the formula to show the formula result.
B28: 8 | C28: ="The formulas in the cells "&ADDRESS(ROW(F13),COLUMN(F13),4)&":"&ADDRESS(ROW(G13),COLUMN(G13),4)&" must add all the numbers in the column." -> The formulas in the cells F13:G13 must add all the numbers in the column.
B29: 9 | C29: ="Data Validation List in cell "&ADDRESS(ROW(B16),COLUMN(B16),4)&" should be linked to cells with names." -> Data Validation List in cell B16 should be linked to cells with names.
B30: 10 | C30: ="Name in cell "&ADDRESS(ROW(B11),COLUMN(B11),4)&" must not have a space at the end." -> Name in cell B11 must not have a space at the end.
B31: 11 | C31: ="Something is wrong with cell "&ADDRESS(ROW(D13),COLUMN(D13),4)&" but I do not know what it is, can you figure it out?" -> Something is wrong with cell D13 but I do not know what it is, can you figure it out?
B32: 12 | C32: Formatting Numbers might be nice also.

Sheet P(2) 82-83

Sheet P82-83an (hidden)
A1: Computer Purchase Analysis
B2: Dell | C2: HP | D2: Lenovo
A3: GHz | B3: 2.13 | C3: 2.4 | D3: 2.13
A4: RAM | B4: 1 | C4: 1 | D4: 2.5
A5: Hard drive | B5: 250 | C5: 200 | D5: 250
A6: Keyboard | B6: Included | C6: Included | D6: Included
A7: Computer: | B7: 1067 | C7: 949 | D7: 1724
A8: RAM upgrade | B8: 130 | C8: 120 | D8: Included
A9: Hard drive upgrade | B9: 220 | C9: 90 | D9: Included
A10: Optical Mouse | B10: 10 | C10: 40 | D10: Included
A11: Video Card | B11: 100 | C11: 100 | D11: Included
A12: Wireless Router or LAN | B12: 82 | C12: 30 | D12: Included
A13: CD-RW | B13: 40 | C13: Included | D13: Included
A14: Upgrade to Windows Vista | B14: 99 | C14: 60 | D14: Included
A15: Flat Panel Monitor | B15: 190 | C15: 130 | D15: 329
A16: Shipping & Handling | B16: 75 | C16: 25 | D16: Included
A17: Warranty | B17: 95 | C17: 127.95
A18: Total cost of 1 system | B18: =SUM(B7:B17) -> 2108 | C18: =SUM(C7:C17) -> 1671.95 | D18: =SUM(D7:D17) -> 2053
A20: Totals After Discounts
A21: Cost per Machine | B21: =(1-B25)*(B18-B16)+B16 -> 1904.7 | C21: =C18-C26 -> 1656.95 | D21: =D18*(1-D27) -> 1642.4
A22: Cost of 30 Machines | B22: =B21*$B28 -> 57141 | C22: =C21*$B28 -> 49708.5 | D22: =D21*$B28 -> 49272
A24: Assumptions
A25: Dell Discount on all but shipping | B25: 0.1
A26: HP discount per machine | C26: 15
A27: Gateway price reduction and Free warrenty (1year) | D27: 0.2
A28: Number of Machines Purchased | B28: 30

Sheet P(3) P84-85
B15: Position | C15: Location | D15: Annual Salary | E15: Cost of Living Multiplier | F15: Monthly Car Payment | G15: Adjusted Salary | H15: Bonus | I15: Total 2yr. Financial Package
B16: Product Manager | C16: New York | D16: 39750 | E16: 1.35 | F16: 0 | H16: 2500
B17: Networking Specialist | C17: Chicago | D17: 42300 | E17: 1.2 | F17: 275
B18: Systems Analyst | C18: Indianapolis | D18: 49900 | E18: 0.85 | F18: 275 | H18: 5000
F20: Average:
F21: Low Offer
F22: High Offer
F23: # positions w/bonus

Sheet 84-85an (hidden)
A1: Goal of homework: Help employee to select the most appropriate position based on a number of criteria
A2: Criteria 1 | B2: Amount of disposable income
A3: Criteria 2
A4: Criteria 3
A6: Assumptions
A7: NY apartment cost | B7: 2500
A8: NY job won't require car | B8: 0
A9: Increase for adjusted Salary after first Year | B9: 0.1
B15: Position | C15: Location | D15: Annual Salary | E15: Cost of Living Multiplier | F15: Monthly Car Payment | G15: Adjusted Salary | H15: Bonus | I15: Total 2yr. Financial Package
B16: Product Manager | C16: New York | D16: 39750 | E16: 1.35 | F16: 0 | G16: =IF(E16=0,0,D16/E16-F16*12) -> 29444.44444 | H16: 2500 | I16: =G16+G16*(1+B$9)+H16 -> 64333.33333
B17: Networking Specialist | C17: Chicago | D17: 42300 | E17: 1.2 | F17: 275 | G17: =IF(E17=0,0,D17/E17-F17*12) -> 31950 | I17: =G17+G17*(1+B$9)+H17 -> 67095
B18: Senior Consultant | C18: New York | D18: 64000 | E18: 1.35 | F18: 0 | G18: =IF(E18=0,0,D18/E18-F18*12) -> 47407.40741 | H18: 5000 | I18: =G18+G18*(1+B$9)+H18 -> 104555.5556
B19: Systems Analyst | C19: Indianapolis | D19: 49900 | E19: 0.85 | F19: 275 | G19: =IF(E19=0,0,D19/E19-F19*12) -> 55405.88235 | H19: 5000 | I19: =G19+G19*(1+B$9)+H19 -> 121352.3529
F21: Average: | G21: =AVERAGE(salaries) -> 41051.93355
F22: Low Offer | G22: =MIN(salaries) -> 29444.44444
F23: High Offer | G23: =MAX(salaries) -> 55405.88235
F24: # positions w/bonus | H24: =COUNT(H16:H19) -> 3
